Cogmind - Beta 17 @@@ ROGUE MODE // 2026.07.15 @ 13:41:26 Player: Tinker Result: Destroyed by NZ-G3J(R) with Subdweller Machine Gun Performance ------------- Evolutions (0) 0 Regions Visited (2) 400 Robots Destroyed (17) 85 Value Destroyed (341) 341 Prototype IDs (3) 60 Alien Tech Used (0) 0 Bonus (5100) 5100 TOTAL SCORE: 5986 Bonus ------- Prayed to X0-1V1 5000 Major X0-1V1 Interference 100 Cogmind --------- Core Integrity 0/150 Matter 191/700 Energy 882/1725 System Corruption 0% Temperature Cool (0) Movement Core (250) Ox4 Location -10/Subcaves Parts ------- > --- POWER (1) -------- Light Ion Engine > --- PROPULSION (1) --- (None) > --- UTILITY (2) ------ Small Storage Unit X0-1V1's Piety Tracker > --- WEAPON (3) ------- Heavy Battle Rifle Hammer > --- INVENTORY (8) ---- Ion Engine Large Storage Unit Structural Scanner Targeting Computer V3-11A's Pendant Beam Cannon Mining Laser Peak State ------------ > --- POWER ------------ Light Ion Engine > --- PROPULSION ------- Aluminum Leg Aluminum Leg > --- UTILITY ---------- Small Storage Unit X0-1V1's Piety Tracker > --- WEAPON ----------- Heavy Battle Rifle Hammer > --- INVENTORY -------- Ion Engine Large Storage Unit Structural Scanner Targeting Computer V3-11A's Pendant Beam Cannon Grenade Launcher Mining Laser [Rating: 23] Favorites ----------- Power Ion Engine Engine Ion Engine Propulsion Light Treads Treads Light Treads Leg Aluminum Leg Utility Small Storage Unit Device Seismic Detector Storage Small Storage Unit Weapon Medium Laser Energy Gun Medium Laser Ballistic Gun Heavy Battle Rifle Launcher Grenade Launcher Impact Weapon Hammer Build | -11 -10 -10 ------- Run | Yrd Mat Sub Slots Evolved . | . . . Power . | . . . Propulsion . | . . . Utility . | . . . Weapon . | . . . Parts Attached 15 | 7 7 1 Power 2 | 1 1 . Engine 2 | 1 1 . Core . | . . . Reactor . | . . . Propulsion 4 | 2 2 . Treads 2 | 2 . . Leg 2 | . 2 . Wheel . | . . . Hover . | . . . Flight . | . . . Utility 4 | 2 2 . Device 3 | 1 2 . Storage 1 | 1 . . Processor . | . . . Hackware . | . . . Protection . | . . . Artifact . | . . . Weapon 5 | 2 2 1 Energy Gun 2 | 2 . . Energy Cannon . | . . . Ballistic Gun 1 | . . 1 Ballistic Cannon . | . . . Launcher 1 | . 1 . Special Weapon . | . . . Impact Weapon 1 | . 1 . Slashing Weapon . | . . . Piercing Weapon . | . . . Special Melee Weapon . | . . . Unidentified Prototypes 1 | . 1 . Parts Lost 7 | . 5 2 Power 1 | . 1 . Propulsion 3 | . 2 1 Utility 1 | . 1 . Weapon 2 | . 1 1 Highest Loss Streak 4 | . 4 2 To Critical Strikes . | . . . Average Backups 6 | 3 6 7 Power . | . 1 1 Propulsion . | 1 1 . Utility 1 | . 1 3 Weapon 2 | 1 2 3 Tool/Special . | . . . Unused Backups 8 | . 1 7 Power 1 | . . 1 Propulsion 1 | . 1 . Utility 3 | . . 3 Weapon 3 | . . 3 Tool/Special . | . . . Average Slot Usage (%) 93 | . 94 91 Engine 13 | . 13 14 Treads 12 | . 17 . Leg 12 | . 9 20 Device 11 | . 10 14 Storage 14 | . 14 14 Energy Gun 12 | . 16 . Ballistic Gun 3 | . . 11 Launcher 4 | . 4 2 Impact Weapon 8 | . 6 14 Peak Build Rating 23 | 7 19 23 Average Rating 10 | 4 6 21 On Entrance 8 | . 7 19 Avg Prop Armor Cover (%) . | . . . Naked Turns . | . . . Heaviest Build 15 | 15 15 15 Greatest Support 40 | 40 40 20 Greatest Overweight (x) 4 | . . 4 Average Overweight (x) . | . . . Largest Inventory Capacity 8 | 8 8 8 Average Capacity 7 | 6 8 8 Most Carried 8 | 5 8 8 Average Carried 6 | 3 6 7 Final Capacity 8 | 8 8 8 Final Carried 8 | 4 8 7 Class Distribution -------------------- 100% | Mutant Dominant Class ---------------- Mutant | -10/Materials Mutant | -10/Subcaves Resources | -11 -10 -10 ----------- Run | Yrd Mat Sub Matter Collected 350 | 181 134 35 Remotely . | . . . Salvage Created 397 | 51 264 82 Parts 22 | 6 11 5 Haulers Intercepted . | . . . Recyclers Shooed . | . . . Parts Field Recycled . | . . . Retrieved Matter . | . . . Parts Self-Destructed . | . . . Prevented . | . . . Parts Restored . | . . . Kills | -11 -10 -10 ------- Run | Yrd Mat Sub Combat Hostiles Destroyed 14 | . 11 3 Melee 6 | . 6 . Guns 2 | . 1 1 AOE 2 | . . 2 Classes Destroyed 5 | 1 3 1 Worker 1 | . 1 . Tunneler 2 | 2 . . Swarmer 7 | . 7 . Grunt 4 | . 4 . Subdweller 3 | . . 3 Best Kill Streak 4 | 2 4 2 Combat Bots Only 4 | . 4 2 Max Kills in Single Turn 1 | 1 1 1 Gunslinging . | . . . Exploded 1 | . . 1 Melee 1 | . 1 . Uniques/NPCs Destroyed . | . . . Combat | -11 -10 -10 -------- Run | Yrd Mat Sub Hostile Shots Fired 106 | . 78 28 Missed 28 | . 14 14 Hits 78 | . 64 14 Projectile 78 | . 64 14 AOE 5 | . 1 4 Damage Taken 1117 | . 606 511 Core 266 | . 113 153 Absorbed by Shields . | . . . Core Remaining (%) 100 | 100 . . Volleys Fired 35 | 4 7 24 Largest 2 | 2 2 1 Hottest 100 | 100 100 33 Shots Fired 43 | 8 11 24 Gun 37 | 8 11 18 Cannon . | . . . Launcher 6 | . . 6 Special . | . . . Kinetic 18 | . . 18 Thermal 19 | 8 11 . Explosive 6 | . . 6 Electromagnetic . | . . . Robot Hit Streak 17 | 2 3 17 Robot Miss Streak 2 | 1 2 1 Penetration Max . | . . . Secondary Targets . | . . . Shots Hit Robots 50 | 4 29 17 Core Hits 19 | 3 6 10 Critical Kills 1 | . 1 . Critical Parts Destroyed 3 | . 3 . Critical Strikes 7 | 2 5 . Burn 3 | 2 1 . Smash 4 | . 4 . Melee Attacks 35 | . 35 . Impact 35 | . 35 . Slashing . | . . . Piercing . | . . . Sneak Attacks 3 | . 3 . Combat Hostiles . | . . . Follow-up Attacks . | . . . Damage Inflicted 1394 | 73 741 580 Guns 451 | 73 64 314 Cannons . | . . . Explosions 266 | . . 266 Melee 677 | . 677 . Ramming . | . . . Kinetic 314 | . . 314 Thermal 137 | 73 64 . Explosive 266 | . . 266 Electromagnetic . | . . . Impact 677 | . 677 . Slashing . | . . . Piercing . | . . . Highest Corruption . | . . . Average Corruption . | . . . Corruption Purged . | . . . Corruption Blocked . | . . . Overload Shots . | . . . Overflow Damage 170 | . 170 . Projectiles . | . . . Explosions . | . . . Melee 170 | . 170 . Knockbacks 2 | . 2 . Impact 2 | . 2 . Kinetic . | . . . Secondary . | . . . Self-Inflicted Damage . | . . . Shots . | . . . Rammed . | . . . Targets Rammed . | . . . Kicked . | . . . Crushed . | . . . Highest Temperature 174 | 78 174 . Average Temperature 58 | 39 71 . Received Heat Transfer 117 | . 72 45 Siege Activations . | . . . Martial Activations . | . . . Shielding Activations . | . . . Robots Disrupted . | . . . Combat Hostiles . | . . . Robots Corrupted 4 | . 4 . Combat Hostiles 4 | . 4 . Parts Fried 5 | . 5 . Impact Corruptions 12 | . 12 . Robots Melted . | . . . Combat Hostiles . | . . . Parts Melted 1 | . 1 . Heat Transferred 629 | 370 259 . Parts Sabotaged . | . . . Parts Stolen . | . . . Parts Stripped . | . . . Power Chain Reactions . | . . . Alert | -11 -10 -10 ------- Run | Yrd Mat Sub Maximum Alert Level . | . . . Low Security (%) 100 | 100 100 . Level 1 . | . . . Level 2 . | . . . Level 3 . | . . . Level 4 . | . . . Level 5 . | . . . High Security . | . . . Max Security . | . . . Peak Influence 186 | 5 186 . Initial . | . . . Average 50 | . 54 . Influence Increases 346 | 10 336 . Destroy 0b10 Robot/C 220 | . 220 . Destroy 0b10 Robot/NC 15 | 10 5 . Destroy Leader 50 | . 50 . Successful Hack 16 | . 16 . Lose Combat Pursuer 45 | . 45 . Influence Decreases 346 | 10 269 67 Entered New Map 33 | . . 33 Time Decay 263 | 10 219 34 Lost Part 50 | . 50 . Squads Dispatched 2 | . 2 . Investigation . | . . . Extermination . | . . . Reinforcement 2 | . 2 . Assault . | . . . Garrison . | . . . Intercept . | . . . Searches Triggered . | . . . Construction Impeded . | . . . Haulers Reinforced . | . . . Active Scanning Responses . | . . . Cargo Convoy Interrupts . | . . . Stealth | -11 -10 -10 --------- Run | Yrd Mat Sub Distress Signals 3 | . 3 . Communications Jammed . | . . . Distress Signals . | . . . Times Spotted 38 | . 33 5 Peak Tracking Total 6 | . 6 2 Tactical Retreats 2 | . 2 . Traps | -11 -10 -10 ------- Run | Yrd Mat Sub Traps Triggered . | . . . Indirectly . | . . . Trap Hack Attempts . | . . . Triggered . | . . . Disarmed . | . . . Reprogrammed 3 | . 3 . Reused . | . . . Traps Extracted . | . . . Installed . | . . . Triggered . | . . . Machines | -11 -10 -10 ---------- Run | Yrd Mat Sub Machines Disabled . | . . . Max in Single Turn . | . . . Machines Repaired . | . . . Machines Dismantled . | . . . Machines Sabotaged . | . . . Overloaded Fab Kills . | . . . Hacking | -11 -10 -10 --------- Run | Yrd Mat Sub Machines Accessed 7 | . 6 1 Terminals 6 | . 6 . Fabricators . | . . . Repair Stations . | . . . Recycling Units . | . . . Scanalyzers . | . . . Garrison Access . | . . . Total Hacks 22 | . 18 4 Successful 16 | . 12 4 Failed 6 | . 6 . Catastrophic 1 | . 1 . Database Lockouts . | . . . Manual 1 | . 1 . Terminals 18 | . 18 . Fabricators . | . . . Repair Stations . | . . . Recycling Units . | . . . Scanalyzers . | . . . Garrison Access . | . . . Terminal Hacks 16 | . 12 4 Record 5 | . 1 4 Prototype ID Bank 1 | . 1 . Branch Access Points 1 | . 1 . Emergency Access Points 1 | . 1 . Terminal Index 1 | . 1 . Alert Level 2 | . 2 . Locate Traps 1 | . 1 . Reprogram Traps 1 | . 1 . Dispatch Records 1 | . 1 . Maintenance Status 1 | . 1 . Security Status 1 | . 1 . Fabricator Hacks . | . . . Repair Station Hacks . | . . . Recycling Unit Hacks . | . . . Scanalyzer . | . . . Garrison Access Hacks . | . . . Unauthorized Hacks . | . . . Terminals . | . . . Fabricators . | . . . Repair Stations . | . . . Recycling Units . | . . . Scanalyzers . | . . . Garrison Access . | . . . Data Cores Recovered . | . . . Used . | . . . Hacking Detections 3 | . 3 . Full Trace Events 1 | . 1 . Feedback Events . | . . . Feedback Blocked . | . . . Robot Schematics Acquired . | . . . Robots Built . | . . . Authchips . | . . . Time . | . . . Total Robot Build Rating . | . . . Part Schematics Acquired . | . . . Parts Built . | . . . Authchips . | . . . Time . | . . . Total Part Build Rating . | . . . Part Studies Acquired . | . . . Parts Repaired . | . . . Time . | . . . Parts Recycled . | . . . Recycled Matter . | . . . Retrieved Matter . | . . . Retrieved Components . | . . . Parts Scanalyzed . | . . . Part Schematics Acquired . | . . . Parts Damaged . | . . . Bothacking | -11 -10 -10 ------------ Run | Yrd Mat Sub Used RIF Installer . | . . . Robots Hacked . | . . . Non-combat . | . . . Combat . | . . . Robot Hacks Applied . | . . . Relay Couplers Released . | . . . Fabnet Peak Effective % . | . . . Robots Rewired . | . . . Allies Hacked . | . . . Hacks Repelled . | . . . Allies | -11 -10 -10 -------- Run | Yrd Mat Sub Total Allies . | . . . Largest Group . | . . . Highest-Rated Group . | . . . Highest-Rated Ally . | . . . Total Orders . | . . . Ally Attacks . | . . . Total Damage . | . . . Kills . | . . . Allies Corrupted . | . . . Allies Melted . | . . . X0-1V1 Amusement Gains 16 | . 16 . Good Acts 3 | . . 3 Bad Acts 2 | . . 2 Intel | -11 -10 -10 ------- Run | Yrd Mat Sub Active Infowar (turns) 1120 | 31 1089 . Structural 102 | . 102 . Seismic 1018 | 31 987 . Robot Analysis Total . | . . . Derelict Logs Recovered 1 | . . 1 Drone Launches . | . . . Drone Recoveries . | . . . Exploration | -11 -10 -10 ------------- Run | Yrd Mat Sub Turns Passed 2194 | 116 1503 575 Spaces Moved 1128 | 59 724 345 Core 12 | 5 . 7 Treads 379 | 54 325 . Legs 737 | . 399 338 Wheels . | . . . Hover . | . . . Flight . | . . . Fastest Speed 50 | 50 120 120 Average Speed 141 | 150 137 147 Slowest Speed 250 | 160 160 250 Overloaded Moves . | . . . Propulsion Burnouts . | . . . Robots Hopped . | . . . Potential Cave-ins . | . . . Cave-ins Triggered . | . . . Exploration Rate (%) 43 | 4 99 28 Regions Visited 2 Branch Regions 1 Pre-discovered Areas 2 | . . 2 Known Exits Taken . | . . . Unknown Exits Taken 2 | 1 1 . Scrap Searched . | . . . Spaces Dug . | . . . Terrain Destroyed . | . . . Melee . | . . . Projectile . | . . . AOE . | . . . Terrain Rammed . | . . . Walls Destroyed . | . . . Machines Disabled . | . . . Actions | -11 -10 -10 --------- Run | Yrd Mat Sub Total 1618 | 75 1154 389 Wait 388 | 1 373 14 Move 1126 | 58 723 345 Hop . | . . . Pick Up 15 | 5 8 2 Fast Attach 8 | 6 2 . Attach 5 | 1 3 1 Detach . | . . . Swap 3 | . 2 1 Drop 3 | . 1 2 Fire 35 | 4 7 24 Melee 35 | . 35 . Ram . | . . . Kick . | . . . Crush . | . . . Escape Stasis . | . . . Rewire . | . . . Trap . | . . . Miscellaneous . | . . . Route ------- -11/Scrapyard -10/Materials (discovered 6 exits: [*Mat x3] / *Min x2 / *Sub) -10/Subcaves (discovered 3 exits: *Mat x2 / Rec) History --------- Turn | Location | Event 14 | -11/Scrapyard | Discovered new exit (range 15) 117 | -11/Scrapyard | Entered Materials 308 | -10/Materials | Build established: Mutant 631 | -10/Materials | Discovered new exit (range 7) 635 | -10/Materials | Identified exit to Mines 1148 | -10/Materials | Lost 4 parts (1p1n1u1w) 1181 | -10/Materials | Discovered new exit (range 3) 1352 | -10/Materials | Discovered new exit (range 16) 1560 | -10/Materials | Discovered new exit (range 8) 1613 | -10/Materials | Prayed at D.C.S.S. Altar Unit 1620 | -10/Materials | Entered Subcaves 1630 | -10/Subcaves | Energy capacity permanently improved by X0-1V1 (+200; -100 max core) 1647 | -10/Subcaves | Discovered new exit (range 12) 1697 | -10/Subcaves | Ambushed by Subdwellers from Twisted Machinery 1765 | -10/Subcaves | Visited Clippyterm 1769 | -10/Subcaves | Identified exit to Materials 1769 | -10/Subcaves | Identified exit to Recycling 1782 | -10/Subcaves | Learned location of Storage (-7) 1825 | -10/Subcaves | Learned location of Zion (-6) 1825 | -10/Subcaves | Met a Zionite searching for "candidates" 1855 | -10/Subcaves | Visited triangular shrine 1866 | -10/Subcaves | Found Prototype Device 1910 | -10/Subcaves | X0-1V1 mutated your Propulsion slot to Weapon slot 2142 | -10/Subcaves | Core integrity fell below 50% 2190 | -10/Subcaves | Core integrity fell below 20% 2195 | -10/Subcaves | Destroyed by NZ-G3J(R) with Subdweller Machine Gun Last Messages --------------- 01856_ V3-11A: "So the triangle door let you in, too. What does the pendant tell you?" 01857_ V3-11A: "It told me to wait here, so here I have waited for quite some time." 01865_ Dropped Med. Laser. 01866_ Acquired Prototype Device. 01869_ Subatomizers dissect the Med. Laser. 01910_ Aluminum Leg tossed aside. 01910_ X0-1V1: "Evolution hits right when you least expect it." (Propulsion slot mutated into Weapon slot) 01917_ X0-1V1 causes your matter storage to temporarily balloon in size. (+400 matter capacity) 02132_ X0-1V1: "Let the electrons flow!" (+1400 energy capacity) 02145_ Grenade Launcher destroyed. 02147_ Aluminum Leg destroyed. 02177_ AE-8WN(R) destroyed. 02195_ X0-1V1 cackles wildly! Map ----- +----------------------------------------------------+ | ?????????????????????????????????????????????????? | | ?????????????????????????????????????????????????? | | ?????????????????????????????????????????????????? | | ?????????????????????????????????????????????????? | | ?????????????????????????????????????????????????? | | ?????????????????????????????????????????????????? | | ?????????????????????????????????????????????????? | | ?????????????????????????????????????????????????? | | ?????????????????????????????????????????????????? | | ???????????########??????????????????????????????? | | ???????????# ##?????????????????????????????? | | ???????????# ??????????????????????????????? | | ????????#### ????######?????????????????????? | | ???????## ?????# ####??????????????????? | | ??#????# #????## # ???????????????????? | | ?## ????# ###### "?????????????????????? | | ## ?????# ## ##???"??????????????????? | | # ????# ##?""??????????????????? | | #???# #"#""?????????????????? | | #### """"" ?????????? | | ! #?????????????? | | [%### ## #?????????????? | | #### !&#???#??? ##?????????????? | | ##?## ### R #???????????????????????? | | ## #### ##?## R##??????????????????????? | | ?#### ##??## @#??????????????????????? | | ????## ##??# ##??????????????????????? | | ############ ##?# #???????????????????????? | | ####??## ## ##??????????????????????? | | ###?## ##?????????????????????? | | ##?# #?????????????????????? | | ### ####?????????????????????? | | ### ### ##????????????????????????? | | #### ##?###?????????????????????????? | | #### #?# ##?????????????????????????????? | | #??## ### ##????????????????????????????? | | ###### #### ##???????????????????????????? | | #?# ## ####????????????????????????? | | #### ## #????????????????????????? | | ##?# #???????????????????????? | | ###?## ###???????????????????????? | | ????# ### ##?????????????????????????? | | ???# ###?# ## ##??????????????????????????? | | ???## #???#### ##???????????????????????????? | | ????# #????? #????????????????????????????? | | ???# ???## ##????????????????????????????? | | ???######???## ##?????????????????????????????? | | #???????##### ##??????????????????????????????? | | #???###?# #????????????????????????????????? | | ##?## ### #????????????????????????????????? | +----------------------------------------------------+ Best States ------------- Heat Dissipation 25 Energy Generation 10 Energy Capacity 1725 Matter Stores 300 Matter Capacity 700 Sight Range 16 Terrain Scan Density 10 Evasion (%) 55 Recoil Reduction 2 Item Schematics ----------------- None Robot Schematics ------------------ None Fabricated ------------ Nothing Repaired ---------- Nothing Studied --------- None Alien Tech Used ----------------- None Achievements -------------- None Challenges ------------ None Game ------ Seed ProjectileBehemothLog Manual? 0 Play Time 00:14:12 Cumulative 35.1 hours Start 2026.07.15 @ 12:40:03 End 2026.07.15 @ 13:41:26 Sessions 1 Manual Loads 0 Difficulty Rogue Special Mode None Game No. 63 Rogue 63 Adventurer 0 Explorer 0 Win Type - Total 0 Types 0/0/0/0/0/0/0/0/0/0 Lore% 13 Gallery% 30 Achievement% 22 Wizard Run 0 Options --------- Layout 2 ASCII 0 Keyboard 1 Movement Numpad Keybinds 0 Fullscreen 1 Font 24/Smallcaps Map View 50x44 Zoom Use 0% Tactical HUD 1 Map Filters NONE Filters NONE Steam 1 RUN: e9617459-4f8c-44c0-8b58-8ec4da96564a